Cogmind - Beta 15 @@@ ROGUE MODE // 2025.05.11 @ 03:59:41 Player: CONM Result: Destroyed self with Grenade Launcher Performance ------------- Evolutions (0) 0 Regions Visited (1) 200 Robots Destroyed (13) 65 Value Destroyed (214) 214 Prototype IDs (0) 0 Alien Tech Used (0) 0 Bonus (0) 0 TOTAL SCORE: 479 Bonus ------- None Cogmind --------- Core Integrity 0/250 Matter 184/300 Energy 125/125 System Corruption 0% Temperature Cool (0) Movement Treading (240) Ox1 Location -10/Materials Parts ------- > --- POWER (1) -------- Light Ion Engine > --- PROPULSION (2) --- Light Treads > --- UTILITY (2) ------ Large Storage Unit Structural Scanner > --- WEAPON (2) ------- EM Pulse Gun Grenade Launcher > --- INVENTORY (15) --- Light Treads Small Storage Unit Grenade Launcher Peak State ------------ > --- POWER ------------ Light Ion Engine > --- PROPULSION ------- Wheel Compact Wheel > --- UTILITY ---------- Small Storage Unit Seismic Detector > --- WEAPON ----------- Light Assault Rifle Light Assault Rifle > --- INVENTORY -------- Light Ion Engine Light Treads Light Treads EM Pulse Gun [Rating: 7] Favorites ----------- Power Light Ion Engine Engine Light Ion Engine Propulsion Light Treads Treads Light Treads Wheel Wheel Utility Small Storage Unit Device Structural Scanner Storage Small Storage Unit Weapon Light Assault Rifle Energy Gun EM Pulse Gun Ballistic Gun Light Assault Rifle Launcher Grenade Launcher Build | -11 -10 ------- Run | Yrd Mat Slots Evolved . | . . Power . | . . Propulsion . | . . Utility . | . . Weapon . | . . Parts Attached 14 | 8 6 Power 2 | 1 1 Engine 2 | 1 1 Core . | . . Reactor . | . . Propulsion 4 | 2 2 Treads 2 | . 2 Leg . | . . Wheel 2 | 2 . Hover . | . . Flight . | . . Utility 4 | 2 2 Device 2 | 1 1 Storage 2 | 1 1 Processor . | . . Hackware . | . . Protection . | . . Artifact . | . . Weapon 4 | 3 1 Energy Gun 1 | 1 . Energy Cannon . | . . Ballistic Gun 2 | 2 . Ballistic Cannon . | . . Launcher 1 | . 1 Special Weapon . | . . Impact Weapon . | . . Slashing Weapon . | . . Piercing Weapon . | . . Special Melee Weapon . | . . Unidentified Prototypes . | . . Parts Lost 7 | . 7 Power 1 | . 1 Propulsion 3 | . 3 Utility 1 | . 1 Weapon 2 | . 2 Highest Loss Streak 5 | . 5 To Critical Strikes . | . . Average Backups 3 | 2 3 Power . | . . Propulsion 1 | 1 1 Utility . | . . Weapon . | . . Tool/Special . | . . Unused Backups 2 | . 2 Power . | . . Propulsion 1 | . 1 Utility . | . . Weapon 1 | . 1 Tool/Special . | . . Average Slot Usage (%) 81 | . 81 Engine 12 | . 12 Treads 11 | . 11 Wheel 6 | . 6 Device 9 | . 9 Storage 14 | . 14 Energy Gun 9 | . 9 Ballistic Gun 9 | . 9 Launcher 8 | . 8 Peak Build Rating 7 | 7 7 Average Rating 5 | 4 5 On Entrance 3 | . 7 Naked Turns . | . . Heaviest Build 29 | 11 29 Greatest Support 26 | 26 26 Greatest Overweight (x) 1 | . 1 Average Overweight (x) . | . . Largest Inventory Capacity 15 | 8 15 Average Capacity 10 | 7 11 Most Carried 6 | 4 6 Average Carried 3 | 2 3 Final Capacity 15 | 8 15 Final Carried 4 | 4 3 Class Distribution -------------------- 100% | Mutant Dominant Class ---------------- Mutant | -10/Materials Resources | -11 -10 ----------- Run | Yrd Mat Matter Collected 268 | 238 30 Remotely . | . . Salvage Created 259 | 17 242 Parts 25 | 3 22 Haulers Intercepted . | . . Recyclers Shooed . | . . Parts Field Recycled . | . . Retrieved Matter . | . . Parts Self-Destructed . | . . Prevented . | . . Kills | -11 -10 ------- Run | Yrd Mat Combat Hostiles Destroyed 11 | . 11 Guns 6 | . 6 AOE 5 | . 5 Classes Destroyed 4 | 1 3 Worker 1 | . 1 Tunneler 1 | 1 . Swarmer 7 | . 7 Grunt 4 | . 4 Best Kill Streak 7 | 1 7 Combat Bots Only 6 | . 6 Max Kills in Single Turn 2 | 1 2 Gunslinging . | . . Exploded 2 | . 2 Melee . | . . Uniques/NPCs Destroyed . | . . Combat | -11 -10 -------- Run | Yrd Mat Hostile Shots Fired 93 | . 93 Missed 21 | . 21 Hits 72 | . 72 Projectile 72 | . 72 Critical Strikes 2 | . 2 Damage Taken 917 | . 917 Core 251 | . 251 Absorbed by Shields . | . . Core Remaining (%) 100 | 100 . Volleys Fired 35 | 4 31 Largest 2 | 2 2 Hottest 60 | 40 60 Shots Fired 62 | 8 54 Gun 59 | 8 51 Cannon . | . . Launcher 3 | . 3 Special . | . . Kinetic 48 | 8 40 Thermal . | . . Explosive 3 | . 3 Electromagnetic 11 | . 11 Robot Hit Streak 15 | 3 15 Robot Miss Streak 2 | 1 2 Penetration Max . | . . Secondary Targets 1 | . 1 Max Gunslinging Chain 1 | . 1 Shots Hit Robots 46 | 6 40 Core Hits 23 | 3 20 Critical Kills . | . . Critical Parts Destroyed . | . . Critical Strikes . | . . Melee Attacks . | . . Impact . | . . Slashing . | . . Piercing . | . . Sneak Attacks . | . . Combat Hostiles . | . . Follow-up Attacks . | . . Damage Inflicted 629 | 52 577 Guns 389 | 52 337 Cannons . | . . Explosions 236 | . 236 Melee . | . . Ramming 4 | . 4 Kinetic 294 | 52 242 Thermal 22 | . 22 Explosive 214 | . 214 Electromagnetic 95 | . 95 Impact . | . . Slashing . | . . Piercing . | . . Highest Corruption . | . . Average Corruption . | . . Corruption Purged . | . . Corruption Blocked . | . . Overload Shots . | . . Overflow Damage 1 | . 1 Projectiles . | . . Explosions 1 | . 1 Melee . | . . Knockbacks . | . . Impact . | . . Kinetic . | . . Secondary . | . . Self-Inflicted Damage 69 | . 69 Shots 2 | . 2 Rammed 3 | . 3 Targets Rammed 3 | . 3 Kicked . | . . Crushed . | . . Highest Temperature 58 | . 58 Average Temperature 32 | . 32 Received Heat Transfer 387 | . 387 Siege Activations . | . . Martial Activations . | . . Shielding Activations . | . . Robots Disrupted . | . . Combat Hostiles . | . . Robots Corrupted . | . . Combat Hostiles . | . . Parts Fried . | . . Impact Corruptions . | . . Robots Melted . | . . Combat Hostiles . | . . Parts Melted . | . . Heat Transferred . | . . Parts Sabotaged . | . . Parts Stolen . | . . Parts Stripped . | . . Power Chain Reactions 1 | . 1 Alert | -11 -10 ------- Run | Yrd Mat Maximum Alert Level . | . . Low Security (%) 100 | 100 100 Level 1 . | . . Level 2 . | . . Level 3 . | . . Level 4 . | . . Level 5 . | . . High Security . | . . Max Security . | . . Peak Influence 144 | 5 144 Initial 3 | . 3 Average 50 | . 59 Influence Increases 314 | 5 309 Destroy 0b10 Robot/C 220 | . 220 Destroy 0b10 Robot/NC 10 | 5 5 Destroy Leader 40 | . 40 Destroy Structure 14 | . 14 Lose Combat Pursuer 30 | . 30 Influence Decreases 243 | . 243 Entered New Map 2 | . 2 Time Decay 171 | . 171 Lost Part 70 | . 70 Squads Dispatched 1 | . 1 Investigation . | . . Extermination . | . . Reinforcement 1 | . 1 Assault . | . . Garrison . | . . Intercept . | . . Searches Triggered . | . . Construction Impeded . | . . Haulers Reinforced . | . . Active Scanning Responses . | . . Cargo Convoy Interrupts . | . . Stealth | -11 -10 --------- Run | Yrd Mat Distress Signals 1 | . 1 Communications Jammed . | . . Distress Signals . | . . Times Spotted 20 | . 20 Peak Tracking Total 6 | . 6 Tactical Retreats 2 | . 2 Traps | -11 -10 ------- Run | Yrd Mat Traps Triggered 1 | . 1 Indirectly . | . . Trap Hack Attempts . | . . Triggered . | . . Disarmed . | . . Reprogrammed . | . . Reused . | . . Traps Extracted . | . . Installed . | . . Triggered . | . . Machines | -11 -10 ---------- Run | Yrd Mat Machines Disabled . | . . Max in Single Turn . | . . Machines Repaired . | . . Machines Dismantled . | . . Machines Sabotaged . | . . Overloaded Fab Kills . | . . Hacking | -11 -10 --------- Run | Yrd Mat Machines Accessed 1 | . 1 Terminals 1 | . 1 Fabricators . | . . Repair Stations . | . . Recycling Units . | . . Scanalyzers . | . . Garrison Access . | . . Total Hacks 2 | . 2 Successful . | . . Failed 2 | . 2 Catastrophic 1 | . 1 Database Lockouts . | . . Manual . | . . Terminals 2 | . 2 Fabricators . | . . Repair Stations . | . . Recycling Units . | . . Scanalyzers . | . . Garrison Access . | . . Terminal Hacks . | . . Fabricator Hacks . | . . Repair Station Hacks . | . . Recycling Unit Hacks . | . . Scanalyzer . | . . Garrison Access Hacks . | . . Unauthorized Hacks . | . . Terminals . | . . Fabricators . | . . Repair Stations . | . . Recycling Units . | . . Scanalyzers . | . . Garrison Access . | . . Data Cores Recovered . | . . Used . | . . Hacking Detections 1 | . 1 Full Trace Events . | . . Feedback Events . | . . Feedback Blocked . | . . Robot Schematics Acquired . | . . Robots Built . | . . Authchips . | . . Time . | . . Total Robot Build Rating . | . . Part Schematics Acquired . | . . Parts Built . | . . Authchips . | . . Time . | . . Total Part Build Rating . | . . Parts Repaired . | . . Time . | . . Parts Recycled . | . . Recycled Matter . | . . Retrieved Matter . | . . Retrieved Components . | . . Parts Scanalyzed . | . . Part Schematics Acquired . | . . Parts Damaged . | . . Bothacking | -11 -10 ------------ Run | Yrd Mat Used RIF Installer . | . . Robots Hacked . | . . Non-combat . | . . Combat . | . . Robot Hacks Applied . | . . Relay Couplers Released . | . . Fabnet Peak Effective % . | . . Robots Rewired . | . . Allies Hacked . | . . Hacks Repelled . | . . Allies | -11 -10 -------- Run | Yrd Mat Total Allies . | . . Largest Group . | . . Highest-Rated Group . | . . Highest-Rated Ally . | . . Total Orders . | . . Ally Attacks . | . . Total Damage . | . . Kills . | . . Allies Corrupted . | . . Allies Melted . | . . Intel | -11 -10 ------- Run | Yrd Mat Active Infowar (turns) 288 | 5 283 Structural 200 | . 200 Seismic 88 | 5 83 Robot Analysis Total . | . . Derelict Logs Recovered . | . . Drone Launches . | . . Drone Recoveries . | . . Exploration | -11 -10 ------------- Run | Yrd Mat Turns Passed 494 | 78 416 Spaces Moved 245 | 57 188 Core 1 | 1 . Treads 121 | . 121 Legs . | . . Wheels 123 | 56 67 Hover . | . . Flight . | . . Fastest Speed 50 | 50 90 Average Speed 151 | 90 169 Slowest Speed 240 | 100 240 Overloaded Moves . | . . Propulsion Burnouts . | . . Robots Hopped . | . . Potential Cave-ins . | . . Cave-ins Triggered . | . . Exploration Rate (%) 24 | 4 44 Regions Visited 1 Branch Regions . Pre-discovered Areas . | . . Known Exits Taken . | . . Unknown Exits Taken 1 | 1 . Scrap Searched . | . . Spaces Dug . | . . Terrain Destroyed 15 | . 15 Melee . | . . Projectile . | . . AOE 15 | . 15 Terrain Rammed . | . . Walls Destroyed . | . . Machines Disabled . | . . Actions | -11 -10 --------- Run | Yrd Mat Total 310 | 73 237 Wait 5 | 1 4 Move 244 | 56 188 Hop . | . . Pick Up 8 | 4 4 Fast Attach 8 | 7 1 Attach 5 | . 5 Detach . | . . Swap 2 | 1 1 Drop . | . . Fire 35 | 4 31 Melee . | . . Ram . | . . Kick . | . . Crush 3 | . 3 Escape Stasis . | . . Rewire . | . . Trap . | . . Miscellaneous . | . . Route ------- -11/Scrapyard -10/Materials History --------- Turn | Location | Event 13 | -11/Scrapyard | Discovered new exit (range 15) 79 | -11/Scrapyard | Entered Materials 202 | -10/Materials | Core integrity fell below 50% 221 | -10/Materials | Core integrity fell below 20% 223 | -10/Materials | Lost 5 parts (1p2n1u1w) 316 | -10/Materials | Build established: Mutant 495 | -10/Materials | Destroyed self with Grenade Launcher Last Messages --------------- 00269_ K-01 Serf collects debris. 00274_ U-05 Engineer lays Concrete. 00278_ K-01 Serf collects debris. 00278_ U-05 Engineer lays Concrete. 00281_ Triggered EMP Trap. 00281_ A bubble of electromagnetic force engulfs the area. 00281_ Door malfunctions. 00281_ EMP Trap short circuited. 00281_ K-01 Serf destroyed. 00281_ A bubble of electromagnetic force engulfs the area. 00281_ Chain reaction triggered in Corrupted Lgt. Ion Engine. 00294_ Acquired Lrg. Storage Unit. 00300_ U-05 Engineer lays Concrete. 00305_ U-05 Engineer builds a Wall. 00307_ U-05 Engineer builds a Door. 00310_ U-05 Engineer repairs door. 00321_ Acquired Grenade Launcher. 00334_ Acquired 19 matter. 00337_ R-06 Scavenger collects Corrupted Wheel. 00495_ S-10 Pest destroyed. Map ----- +----------------------------------------------------+ | ? """ + + ##?????????????????? | | # """ # # ##?????????????????? | | # # # ##?????????????????? | | #! = # # #### ??????????????? | | # # ###+############ ??????????????? | | ########### ### ## # ??????????????? | | ## # # # ??????????????? | | ## """ # # # ??????????????? | | ## """ ]# + # ??????????????? | | ## """ # # """ """ # ??????????????? | | ## # """ # """ """ # ??????????????? | | ######+#+## """ # """ ""??????????????????? | | ###### ^ """ ########??????????????????? | | ????## """ ########??????????????????? | | ????## # ???????????????????????? | | ????#### # "??????????????????????? | | ########+# """ # """?????????????????????? | | # # """ # """""???? ????????????? | | # ! # """ # """"????? ???????????? | | ? # """ # ""?????# ???????????? | | ?? """ # # ??????# #???????????? | | ???""""" + # ?# #???????????? | | ???""""" # ^ #########?# +???????????? | | ???""""" # [! /s ##?# #???????????? | | ??? """ # [ %#%= ##?# #???????????? | | ??? # #[@ ##?# #???????????? | | ???##+#?## #= ##?# #???????????? | | ????????## ^ #= % ##?# #???????????? | | ????????## #== %% ##?# #???????????? | | ???????### #####+###?# #???????????? | | ????# #####%###?# #???????????? | | ????# ""T"" % ## ## ##### #???????????? | | ????# """"" % #???????????? | | ????### ## ######## #???????????? | | ??????# # #??????# #???????????? | | ??????# ###########??????# #????#######? | | ??????# ??######?????????# #????# ? | | ??????# ?????????????????# ###### """""? | | ??????# ?????????????????# # """""? | | ??????# ? ??????????????????# # """""" | | ????????????#??????????????????# + """""" | | ???????????????????????????########## # """""" | | ??????????????????????????? # # | | ??????????????????????????# """ """ # # | | ??????????????????????????# """ """ # ######## | | ??????????????????????????# """ """ # # | | ??????????????????????????# # # | | ??????????????????????????########+## # | | ?????????????????????????####### # | | ?????????????????????????# # + | +----------------------------------------------------+ Best States ------------- Heat Dissipation 25 Energy Generation 10 Energy Capacity 125 Matter Stores 268 Matter Capacity 300 Sight Range 16 Terrain Scan Density 10 Evasion (%) 42 Recoil Reduction 1 Item Schematics ----------------- None Robot Schematics ------------------ None Fabricated ------------ Nothing Repaired ---------- Nothing Alien Tech Used ----------------- None Achievements -------------- None Challenges ------------ None Game ------ Seed AdvancedGunDoublenader Manual? 0 Play Time 00:06:15 Cumulative 131.4 hours Start 2025.05.11 @ 03:52:59 End 2025.05.11 @ 03:59:41 Sessions 1 Manual Loads 0 Difficulty Rogue Special Mode None Game No. 155 Rogue 155 Adventurer 0 Explorer 0 Win Type - Total 0 Types 0/0/0/0/0/0/0/0/0/0 Lore% 50 Gallery% 44 Achievement% 44 Wizard Run 0 Options --------- Layout 0 ASCII 0 Keyboard 0 Movement Arrows Keybinds 0 Fullscreen 1 Font 20/SmallcapsGlow Map View 66x50 Zoom Use 0% Tactical HUD 1 Map Filters NONE Filters NONE Steam 1 RUN: 4f400bd2-296e-4fed-9a57-3327a5f67bc4